[Event "Titled Tuesday Blitz March 14 Late 2023"]
[White "Grinev, Valeriy"]
[Black "Sailer, Mike"]
[WhiteFideId "14117517"]
[BlackFideId "2012901"]
[WhiteElo "2365"]
[BlackElo "2109"]
[Result "1-0"]
[Round "02"]
[TimeControl "180+1"]
[Date "2023.03.14"]
[WhiteClock "0:00:32"]
[BlackClock "0:00:08"]

1. d4 {[%clk 0:03:00]}  d5 {[%clk 0:02:58]} 2. Nf3 {[%clk 0:03:00]}  Nf6 {[%clk 0:02:51]} 3. e3 {[%clk 0:03:00]}  Bg4 {[%clk 0:02:48]} 4. h3 {[%clk 0:02:59]}  Bh5 {[%clk 0:02:43]} 5. g4 {[%clk 0:02:59]}  Bg6 {[%clk 0:02:43]} 6. Ne5 {[%clk 0:03:00]}  e6 {[%clk 0:02:41]} 7. h4 {[%clk 0:03:00]}  Ne4 {[%clk 0:02:21]} 8. h5 {[%clk 0:02:53]}  f6 {[%clk 0:02:20]} 9. hxg6 {[%clk 0:02:45]}  fxe5 {[%clk 0:02:12]} 10. Rxh7 {[%clk 0:02:45]}  Rxh7 {[%clk 0:02:00]} 11. gxh7 {[%clk 0:02:45]}  Qh4 {[%clk 0:01:58]} 12. Qf3 {[%clk 0:02:39]}  exd4 {[%clk 0:01:47]} 13. Qh3 {[%clk 0:02:26]}  Qxf2+ {[%clk 0:01:34]} 14. Kd1 {[%clk 0:02:27]}  Ng3 {[%clk 0:01:05]} 15. h8=Q {[%clk 0:02:11]}  Qf3+ {[%clk 0:00:58]} 16. Ke1 {[%clk 0:02:08]}  dxe3 {[%clk 0:00:44]} 17. Q8h5+ {[%clk 0:01:43]}  Kd7 {[%clk 0:00:34]} 18. Qg2 {[%clk 0:00:41]}  Qxg2 {[%clk 0:00:32]} 19. Bxg2 {[%clk 0:00:42]}  Nxh5 {[%clk 0:00:32]} 20. gxh5 {[%clk 0:00:43]}  Bc5 {[%clk 0:00:26]} 21. Ke2 {[%clk 0:00:43]}  Nc6 {[%clk 0:00:26]} 22. Bxe3 {[%clk 0:00:42]}  Nd4+ {[%clk 0:00:18]} 23. Bxd4 {[%clk 0:00:40]}  Bxd4 {[%clk 0:00:19]} 24. c3 {[%clk 0:00:41]}  Bf6 {[%clk 0:00:17]} 25. Nd2 {[%clk 0:00:42]}  Rh8 {[%clk 0:00:15]} 26. Bf3 {[%clk 0:00:41]}  c6 {[%clk 0:00:14]} 27. a4 {[%clk 0:00:35]}  e5 {[%clk 0:00:15]} 28. Bg4+ {[%clk 0:00:33]}  Kd6 {[%clk 0:00:15]} 29. a5 {[%clk 0:00:33]}  a6 {[%clk 0:00:14]} 30. Nf1 {[%clk 0:00:33]}  e4 {[%clk 0:00:10]} 31. Ne3 {[%clk 0:00:33]}  Ke5 {[%clk 0:00:10]} 32. Rf1 {[%clk 0:00:33]}  c5 {[%clk 0:00:08]} 33. Rf5+ {[%clk 0:00:32]}  Kd6 {[%clk 0:00:08]} 34. Rxd5+ {[%clk 0:00:32]} 1-0


[Site "https://www.chess.com"]

[Event "Titled Tuesday Blitz March 14 Late 2023"]
[White "Grycel, Kamil"]
[Black "Kornyukov, Alexey"]
[WhiteFideId "1115499"]
[BlackFideId "4150457"]
[WhiteElo "2464"]
[BlackElo "2352"]
[Result "1-0"]
[Round "02"]
[TimeControl "180+1"]
[Date "2023.03.14"]
[WhiteClock "0:00:17"]
[BlackClock "0:00:17"]

1. b3 {[%clk 0:02:56]}  d5 {[%clk 0:02:54]} 2. Bb2 {[%clk 0:02:56]}  c5 {[%clk 0:02:54]} 3. Nf3 {[%clk 0:02:56]}  Nc6 {[%clk 0:02:53]} 4. e3 {[%clk 0:02:56]}  a6 {[%clk 0:02:54]} 5. d4 {[%clk 0:02:56]}  Nf6 {[%clk 0:02:53]} 6. Nbd2 {[%clk 0:02:56]}  cxd4 {[%clk 0:02:51]} 7. Nxd4 {[%clk 0:02:54]}  g6 {[%clk 0:02:50]} 8. Nxc6 {[%clk 0:02:51]}  bxc6 {[%clk 0:02:50]} 9. Bxf6 {[%clk 0:02:23]}  exf6 {[%clk 0:02:46]} 10. Be2 {[%clk 0:02:21]}  Bg7 {[%clk 0:02:41]} 11. c4 {[%clk 0:02:16]}  f5 {[%clk 0:02:39]} 12. Rc1 {[%clk 0:02:14]}  d4 {[%clk 0:02:38]} 13. exd4 {[%clk 0:02:09]}  Qxd4 {[%clk 0:02:31]} 14. O-O {[%clk 0:02:05]}  O-O {[%clk 0:02:30]} 15. Nf3 {[%clk 0:02:03]}  Qc5 {[%clk 0:02:28]} 16. Qd2 {[%clk 0:01:40]}  a5 {[%clk 0:02:27]} 17. Rfd1 {[%clk 0:01:31]}  Be6 {[%clk 0:02:25]} 18. Qd6 {[%clk 0:01:29]}  Qxd6 {[%clk 0:02:13]} 19. Rxd6 {[%clk 0:01:30]}  c5 {[%clk 0:02:12]} 20. Ng5 {[%clk 0:01:11]}  Rfd8 {[%clk 0:01:59]} 21. Rcd1 {[%clk 0:01:10]}  Bd4 {[%clk 0:01:58]} 22. Rxd8+ {[%clk 0:00:57]}  Rxd8 {[%clk 0:01:58]} 23. Nxe6 {[%clk 0:00:52]}  fxe6 {[%clk 0:01:57]} 24. Bf3 {[%clk 0:00:51]}  Kf7 {[%clk 0:01:54]} 25. Kf1 {[%clk 0:00:52]}  Rd7 {[%clk 0:01:49]} 26. Bc6 {[%clk 0:00:50]}  Rc7 {[%clk 0:01:47]} 27. Bb5 {[%clk 0:00:49]}  e5 {[%clk 0:01:44]} 28. Ke2 {[%clk 0:00:48]}  Kf6 {[%clk 0:01:40]} 29. f3 {[%clk 0:00:48]}  g5 {[%clk 0:01:38]} 30. g4 {[%clk 0:00:46]}  e4 {[%clk 0:01:25]} 31. gxf5 {[%clk 0:00:40]}  exf3+ {[%clk 0:01:24]} 32. Kxf3 {[%clk 0:00:37]}  Re7 {[%clk 0:01:20]} 33. Rf1 {[%clk 0:00:20]}  Kxf5 {[%clk 0:01:11]} 34. Kg3+ {[%clk 0:00:20]}  Kg6 {[%clk 0:01:11]} 35. Bc6 {[%clk 0:00:20]}  h5 {[%clk 0:01:07]} 36. h3 {[%clk 0:00:14]}  Re6 {[%clk 0:00:54]} 37. Bd5 {[%clk 0:00:14]}  Re3+ {[%clk 0:00:52]} 38. Rf3 {[%clk 0:00:15]}  h4+ {[%clk 0:00:49]} 39. Kg4 {[%clk 0:00:15]}  Re2 {[%clk 0:00:42]} 40. Bf7+ {[%clk 0:00:16]}  Kh6 {[%clk 0:00:39]} 41. Kf5 {[%clk 0:00:16]}  Re5+ {[%clk 0:00:33]} 42. Kg4 {[%clk 0:00:16]}  Re4+ {[%clk 0:00:29]} 43. Kf5 {[%clk 0:00:16]}  Re5+ {[%clk 0:00:27]} 44. Kg4 {[%clk 0:00:17]}  Kg7 {[%clk 0:00:25]} 45. Bd5 {[%clk 0:00:17]}  Re2 {[%clk 0:00:22]} 46. Kxg5 {[%clk 0:00:17]}  Rg2+ {[%clk 0:00:19]} 47. Kxh4 {[%clk 0:00:17]}  Bf6+ {[%clk 0:00:18]} 48. Rxf6 {[%clk 0:00:16]}  Kxf6 {[%clk 0:00:17]} 49. Bxg2 {[%clk 0:00:16]}  Kf5 {[%clk 0:00:16]} 50. Bc6 {[%clk 0:00:16]}  Kf4 {[%clk 0:00:16]} 51. Kh5 {[%clk 0:00:16]}  Kf5 {[%clk 0:00:16]} 52. h4 {[%clk 0:00:16]}  Kf6 {[%clk 0:00:17]} 53. Ba4 {[%clk 0:00:17]} 1-0


[Site "https://www.chess.com"]

[Event "Titled Tuesday Blitz March 14 Late 2023"]
[White "Hansen, Eric"]
[Black "Diaz Rosas, Julio Cesar"]
[WhiteFideId "2606771"]
[BlackFideId "5105099"]
[WhiteElo "2569"]
[BlackElo "2270"]
[Result "1-0"]
[Round "02"]
[TimeControl "180+1"]
[Date "2023.03.14"]
[WhiteClock "0:00:31"]
[BlackClock "0:00:05"]

1. b3 {[%clk 0:02:57]}  e5 {[%clk 0:02:57]} 2. Bb2 {[%clk 0:02:40]}  Nc6 {[%clk 0:02:50]} 3. e3 {[%clk 0:02:40]}  Nf6 {[%clk 0:02:50]} 4. Bb5 {[%clk 0:02:35]}  Bd6 {[%clk 0:02:50]} 5. Ne2 {[%clk 0:02:35]}  O-O {[%clk 0:02:48]} 6. Ng3 {[%clk 0:02:21]}  Ne7 {[%clk 0:02:39]} 7. O-O {[%clk 0:02:13]}  c6 {[%clk 0:02:36]} 8. Be2 {[%clk 0:02:12]}  Bc7 {[%clk 0:02:24]} 9. f4 {[%clk 0:01:57]}  d6 {[%clk 0:02:19]} 10. fxe5 {[%clk 0:01:56]}  dxe5 {[%clk 0:02:20]} 11. e4 {[%clk 0:01:44]}  Ng6 {[%clk 0:02:13]} 12. d3 {[%clk 0:01:45]}  Nf4 {[%clk 0:02:10]} 13. Kh1 {[%clk 0:01:44]}  g6 {[%clk 0:01:52]} 14. Nd2 {[%clk 0:01:41]}  h5 {[%clk 0:01:37]} 15. Bf3 {[%clk 0:01:40]}  Qe7 {[%clk 0:01:35]} 16. Nc4 {[%clk 0:01:38]}  Bg4 {[%clk 0:01:24]} 17. h3 {[%clk 0:01:34]}  Bd7 {[%clk 0:01:18]} 18. a4 {[%clk 0:01:30]}  Rad8 {[%clk 0:01:13]} 19. Qe1 {[%clk 0:01:29]}  h4 {[%clk 0:01:05]} 20. Ne2 {[%clk 0:01:29]}  N6h5 {[%clk 0:01:04]} 21. Nxf4 {[%clk 0:01:16]}  Nxf4 {[%clk 0:01:03]} 22. Qe3 {[%clk 0:01:17]}  b5 {[%clk 0:00:52]} 23. axb5 {[%clk 0:01:13]}  cxb5 {[%clk 0:00:53]} 24. Qxa7 {[%clk 0:01:07]}  Bxh3 {[%clk 0:00:15]} 25. Bxe5 {[%clk 0:00:55]}  Nxg2 {[%clk 0:00:10]} 26. Qxc7 {[%clk 0:00:51]}  Rd7 {[%clk 0:00:09]} 27. Bd6 {[%clk 0:00:44]}  Qe6 {[%clk 0:00:08]} 28. Qc5 {[%clk 0:00:41]}  bxc4 {[%clk 0:00:08]} 29. Bxf8 {[%clk 0:00:39]}  Ne3 {[%clk 0:00:07]} 30. Bh6 {[%clk 0:00:37]}  Kh7 {[%clk 0:00:03]} 31. Bxe3 {[%clk 0:00:36]}  Bxf1 {[%clk 0:00:04]} 32. Rxf1 {[%clk 0:00:37]}  Qh3+ {[%clk 0:00:03]} 33. Kg1 {[%clk 0:00:37]}  Qg3+ {[%clk 0:00:04]} 34. Bg2 {[%clk 0:00:34]}  h3 {[%clk 0:00:04]} 35. Rf2 {[%clk 0:00:32]}  cxd3 {[%clk 0:00:04]} 36. cxd3 {[%clk 0:00:31]}  Rxd3 {[%clk 0:00:05]} 37. Rxf7+ {[%clk 0:00:31]} 1-0


[Site "https://www.chess.com"]

[Event "Titled Tuesday Blitz March 14 Late 2023"]
[White "Harris, Ian"]
[Black "Nazaretyan, Tigran"]
[WhiteFideId "2020092"]
[BlackFideId "24162345"]
[WhiteElo "2322"]
[BlackElo "2111"]
[Result "0-1"]
[Round "02"]
[TimeControl "180+1"]
[Date "2023.03.14"]
[WhiteClock "0:00:02"]
[BlackClock "0:01:10"]

1. d4 {[%clk 0:01:19]}  Nf6 {[%clk 0:02:57]} 2. Bg5 {[%clk 0:01:18]}  d5 {[%clk 0:02:55]} 3. e3 {[%clk 0:01:17]}  Nbd7 {[%clk 0:02:54]} 4. Nd2 {[%clk 0:01:17]}  g6 {[%clk 0:02:51]} 5. Bd3 {[%clk 0:01:17]}  Bg7 {[%clk 0:02:50]} 6. Ngf3 {[%clk 0:01:16]}  O-O {[%clk 0:02:50]} 7. c3 {[%clk 0:01:16]}  c5 {[%clk 0:02:49]} 8. O-O {[%clk 0:01:12]}  Qc7 {[%clk 0:02:49]} 9. Re1 {[%clk 0:01:09]}  e5 {[%clk 0:02:45]} 10. dxe5 {[%clk 0:01:09]}  Nxe5 {[%clk 0:02:45]} 11. Nxe5 {[%clk 0:01:09]}  Qxe5 {[%clk 0:02:45]} 12. Nf3 {[%clk 0:01:10]}  Qe6 {[%clk 0:02:40]} 13. Qc2 {[%clk 0:01:06]}  Re8 {[%clk 0:02:34]} 14. e4 {[%clk 0:00:57]}  Nxe4 {[%clk 0:02:32]} 15. Nd2 {[%clk 0:00:43]}  Qf5 {[%clk 0:02:13]} 16. Bh4 {[%clk 0:00:33]}  Qh5 {[%clk 0:02:08]} 17. Bxe4 {[%clk 0:00:26]}  dxe4 {[%clk 0:02:00]} 18. Bg3 {[%clk 0:00:26]}  f5 {[%clk 0:01:58]} 19. Qb3+ {[%clk 0:00:23]}  Kh8 {[%clk 0:01:54]} 20. Nc4 {[%clk 0:00:23]}  Be6 {[%clk 0:01:53]} 21. Qb5 {[%clk 0:00:19]}  a6 {[%clk 0:01:51]} 22. Qxc5 {[%clk 0:00:12]}  Rac8 {[%clk 0:01:49]} 23. Bc7 {[%clk 0:00:10]}  Qg5 {[%clk 0:01:27]} 24. Nd6 {[%clk 0:00:08]}  Qe7 {[%clk 0:01:19]} 25. Qb6 {[%clk 0:00:03]}  Rxc7 {[%clk 0:01:09]} 26. Nxe8 {[%clk 0:00:02]}  Rc6 {[%clk 0:01:10]} 0-1


[Site "https://www.chess.com"]

[Event "Titled Tuesday Blitz March 14 Late 2023"]
[White "Kamsky, Gata"]
[Black "Karas, Marek"]
[WhiteFideId "2000024"]
[BlackFideId "14928558"]
[WhiteElo "2666"]
[BlackElo "2233"]
[Result "1-0"]
[Round "02"]
[TimeControl "180+1"]
[Date "2023.03.14"]
[WhiteClock "0:00:17"]
[BlackClock "0:00:02"]

1. e4 {[%clk 0:03:00]}  e6 {[%clk 0:02:59]} 2. Qe2 {[%clk 0:02:55]}  c5 {[%clk 0:02:59]} 3. Nf3 {[%clk 0:02:54]}  Nc6 {[%clk 0:02:59]} 4. g3 {[%clk 0:02:55]}  Nf6 {[%clk 0:02:58]} 5. Bg2 {[%clk 0:02:53]}  d5 {[%clk 0:02:50]} 6. e5 {[%clk 0:02:47]}  Nd7 {[%clk 0:02:50]} 7. d3 {[%clk 0:02:40]}  Be7 {[%clk 0:02:49]} 8. h4 {[%clk 0:02:38]}  h6 {[%clk 0:02:45]} 9. c3 {[%clk 0:02:27]}  b5 {[%clk 0:02:39]} 10. Bf4 {[%clk 0:02:13]}  Qb6 {[%clk 0:02:36]} 11. Nbd2 {[%clk 0:02:11]}  Bb7 {[%clk 0:02:35]} 12. a3 {[%clk 0:02:05]}  a5 {[%clk 0:02:29]} 13. g4 {[%clk 0:02:04]}  b4 {[%clk 0:02:26]} 14. Bg3 {[%clk 0:01:58]}  bxa3 {[%clk 0:02:12]} 15. bxa3 {[%clk 0:01:56]}  Ba6 {[%clk 0:02:08]} 16. Rb1 {[%clk 0:01:55]}  Qc7 {[%clk 0:02:05]} 17. c4 {[%clk 0:01:53]}  dxc4 {[%clk 0:01:37]} 18. Nxc4 {[%clk 0:01:46]}  Bxc4 {[%clk 0:01:34]} 19. dxc4 {[%clk 0:01:46]}  Rb8 {[%clk 0:01:33]} 20. O-O {[%clk 0:01:44]}  O-O {[%clk 0:01:28]} 21. Qe4 {[%clk 0:01:44]}  Rxb1 {[%clk 0:01:24]} 22. Rxb1 {[%clk 0:01:42]}  Rb8 {[%clk 0:01:23]} 23. Rd1 {[%clk 0:01:31]}  Nf8 {[%clk 0:01:21]} 24. g5 {[%clk 0:01:17]}  hxg5 {[%clk 0:01:20]} 25. Nxg5 {[%clk 0:01:13]}  Nd4 {[%clk 0:01:14]} 26. Nf3 {[%clk 0:01:12]}  Nf5 {[%clk 0:01:06]} 27. Bh2 {[%clk 0:00:57]}  Rd8 {[%clk 0:01:05]} 28. Rb1 {[%clk 0:00:51]}  Rb8 {[%clk 0:01:05]} 29. Rb5 {[%clk 0:00:50]}  Rxb5 {[%clk 0:01:03]} 30. cxb5 {[%clk 0:00:50]}  c4 {[%clk 0:01:03]} 31. Qc6 {[%clk 0:00:50]}  Qxc6 {[%clk 0:00:41]} 32. bxc6 {[%clk 0:00:49]}  Bd8 {[%clk 0:00:41]} 33. h5 {[%clk 0:00:44]}  c3 {[%clk 0:00:38]} 34. Bf4 {[%clk 0:00:43]}  g6 {[%clk 0:00:34]} 35. h6 {[%clk 0:00:40]}  Bc7 {[%clk 0:00:16]} 36. Kf1 {[%clk 0:00:27]}  Nh7 {[%clk 0:00:14]} 37. Ke2 {[%clk 0:00:24]}  g5 {[%clk 0:00:15]} 38. Nxg5 {[%clk 0:00:24]}  Nxg5 {[%clk 0:00:14]} 39. Bxg5 {[%clk 0:00:24]}  Bxe5 {[%clk 0:00:14]} 40. Kd3 {[%clk 0:00:18]}  Kh7 {[%clk 0:00:13]} 41. Bd8 {[%clk 0:00:18]}  Kxh6 {[%clk 0:00:06]} 42. Bxa5 {[%clk 0:00:16]}  Ne7 {[%clk 0:00:02]} 43. Bxc3 {[%clk 0:00:16]}  Bxc3 {[%clk 0:00:02]} 44. Kxc3 {[%clk 0:00:16]}  Kg6 {[%clk 0:00:01]} 45. c7 {[%clk 0:00:16]}  Kf6 {[%clk 0:00:01]} 46. Bb7 {[%clk 0:00:16]}  Ke5 {[%clk 0:00:01]} 47. c8=Q {[%clk 0:00:16]}  Nxc8 {[%clk 0:00:02]} 48. Bxc8 {[%clk 0:00:17]} 1-0


[Site "https://www.chess.com"]

[Event "Titled Tuesday Blitz March 14 Late 2023"]
[White "Klekowski, Maciej"]
[Black "Mirimanian, Hayk"]
[WhiteFideId "1132717"]
[BlackFideId "4700180"]
[WhiteElo "2540"]
[BlackElo "2280"]
[Result "0-1"]
[Round "02"]
[TimeControl "180+1"]
[Date "2023.03.14"]
[WhiteClock "0:00:02"]
[BlackClock "0:00:13"]

1. c4 {[%clk 0:03:00]}  e6 {[%clk 0:02:52]} 2. Nc3 {[%clk 0:03:01]}  Nf6 {[%clk 0:02:50]} 3. Nf3 {[%clk 0:03:00]}  Bb4 {[%clk 0:02:45]} 4. Qb3 {[%clk 0:02:59]}  c5 {[%clk 0:02:41]} 5. a3 {[%clk 0:02:59]}  Ba5 {[%clk 0:02:38]} 6. g3 {[%clk 0:02:55]}  Nc6 {[%clk 0:02:36]} 7. Bg2 {[%clk 0:02:56]}  O-O {[%clk 0:02:30]} 8. O-O {[%clk 0:02:56]}  d5 {[%clk 0:02:22]} 9. d3 {[%clk 0:02:44]}  h6 {[%clk 0:02:19]} 10. Na4 {[%clk 0:02:38]}  b6 {[%clk 0:02:13]} 11. Qc2 {[%clk 0:02:20]}  Bd7 {[%clk 0:02:04]} 12. b3 {[%clk 0:02:19]}  Rc8 {[%clk 0:02:02]} 13. Bb2 {[%clk 0:02:13]}  d4 {[%clk 0:02:01]} 14. e3 {[%clk 0:02:12]}  e5 {[%clk 0:01:58]} 15. exd4 {[%clk 0:02:11]}  exd4 {[%clk 0:01:57]} 16. Bc1 {[%clk 0:01:43]}  Re8 {[%clk 0:01:57]} 17. Bd2 {[%clk 0:01:42]}  Bxd2 {[%clk 0:01:43]} 18. Nxd2 {[%clk 0:01:41]}  Ne5 {[%clk 0:01:41]} 19. Nb2 {[%clk 0:01:39]}  Bc6 {[%clk 0:01:27]} 20. Rae1 {[%clk 0:01:20]}  Bxg2 {[%clk 0:01:20]} 21. Kxg2 {[%clk 0:01:21]}  Rc6 {[%clk 0:01:07]} 22. b4 {[%clk 0:01:06]}  Rce6 {[%clk 0:01:02]} 23. Qa4 {[%clk 0:01:01]}  a5 {[%clk 0:00:46]} 24. h3 {[%clk 0:00:51]}  Qa8+ {[%clk 0:00:33]} 25. Kg1 {[%clk 0:00:50]}  axb4 {[%clk 0:00:22]} 26. axb4 {[%clk 0:00:48]}  Nf3+ {[%clk 0:00:20]} 27. Nxf3 {[%clk 0:00:48]}  Qxf3 {[%clk 0:00:21]} 28. Rxe6 {[%clk 0:00:39]}  Rxe6 {[%clk 0:00:22]} 29. bxc5 {[%clk 0:00:37]}  bxc5 {[%clk 0:00:21]} 30. Qd1 {[%clk 0:00:28]}  Re2 {[%clk 0:00:19]} 31. Na4 {[%clk 0:00:14]}  Nh5 {[%clk 0:00:19]} 32. Qxe2 {[%clk 0:00:08]}  Qxe2 {[%clk 0:00:19]} 33. Nxc5 {[%clk 0:00:09]}  f5 {[%clk 0:00:16]} 34. Kg2 {[%clk 0:00:07]}  f4 {[%clk 0:00:16]} 35. g4 {[%clk 0:00:08]}  f3+ {[%clk 0:00:15]} 36. Kg1 {[%clk 0:00:08]}  Nf4 {[%clk 0:00:16]} 37. Rb1 {[%clk 0:00:03]}  Nxh3+ {[%clk 0:00:16]} 38. Kh2 {[%clk 0:00:04]}  Nxf2 {[%clk 0:00:13]} 39. Rb8+ {[%clk 0:00:01]}  Kh7 {[%clk 0:00:13]} 40. Kg3 {[%clk 0:00:01]}  Nxd3 {[%clk 0:00:13]} 41. Nd7 {[%clk 0:00:02]}  Qg2+ {[%clk 0:00:13]} 42. Kh4 {[%clk 0:00:02]}  g5+ {[%clk 0:00:13]} 43. Kh5 {[%clk 0:00:02]}  Nf4# {[%clk 0:00:13]} 0-1


[Site "https://www.chess.com"]

[Event "Titled Tuesday Blitz March 14 Late 2023"]
[White "Koellner, Ruben Gideon"]
[Black "Liu, Casper"]
[WhiteFideId "12993093"]
[BlackFideId "1454153"]
[WhiteElo "2303"]
[BlackElo "2221"]
[Result "1-0"]
[Round "02"]
[TimeControl "180+1"]
[Date "2023.03.14"]
[WhiteClock "0:01:41"]
[BlackClock "0:00:07"]

1. d4 {[%clk 0:03:00]}  Nf6 {[%clk 0:02:30]} 2. Nf3 {[%clk 0:03:00]}  b5 {[%clk 0:02:25]} 3. Nbd2 {[%clk 0:02:58]}  Bb7 {[%clk 0:02:25]} 4. e3 {[%clk 0:02:58]}  a6 {[%clk 0:02:25]} 5. a4 {[%clk 0:02:58]}  b4 {[%clk 0:02:24]} 6. Bd3 {[%clk 0:02:59]}  e6 {[%clk 0:02:22]} 7. e4 {[%clk 0:02:59]}  c5 {[%clk 0:02:20]} 8. c3 {[%clk 0:02:59]}  cxd4 {[%clk 0:02:19]} 9. cxd4 {[%clk 0:02:59]}  Nc6 {[%clk 0:02:18]} 10. b3 {[%clk 0:02:58]}  Rc8 {[%clk 0:02:16]} 11. O-O {[%clk 0:02:57]}  d6 {[%clk 0:02:14]} 12. Qe2 {[%clk 0:02:58]}  Qb6 {[%clk 0:02:12]} 13. Bb2 {[%clk 0:02:57]}  Be7 {[%clk 0:02:11]} 14. Nc4 {[%clk 0:02:56]}  Qc7 {[%clk 0:02:08]} 15. e5 {[%clk 0:02:56]}  Nd5 {[%clk 0:02:04]} 16. Qd2 {[%clk 0:02:47]}  dxe5 {[%clk 0:01:59]} 17. dxe5 {[%clk 0:02:46]}  O-O {[%clk 0:01:57]} 18. Rfd1 {[%clk 0:02:41]}  Rfd8 {[%clk 0:01:57]} 19. Rac1 {[%clk 0:02:41]}  h6 {[%clk 0:01:53]} 20. Qe1 {[%clk 0:02:35]}  Nf4 {[%clk 0:01:51]} 21. Bb1 {[%clk 0:02:34]}  g5 {[%clk 0:01:42]} 22. g3 {[%clk 0:02:22]}  Nh3+ {[%clk 0:01:28]} 23. Kf1 {[%clk 0:02:22]}  Rxd1 {[%clk 0:01:13]} 24. Rxd1 {[%clk 0:02:20]}  Rd8 {[%clk 0:01:13]} 25. Rxd8+ {[%clk 0:02:14]}  Qxd8 {[%clk 0:01:14]} 26. Qe4 {[%clk 0:02:08]}  Qd1+ {[%clk 0:00:48]} 27. Kg2 {[%clk 0:02:08]}  Kf8 {[%clk 0:00:20]} 28. Bc2 {[%clk 0:01:55]}  Qd7 {[%clk 0:00:08]} 29. Qh7 {[%clk 0:01:49]}  Ke8 {[%clk 0:00:07]} 30. Kxh3 {[%clk 0:01:41]} 1-0


[Site "https://www.chess.com"]

[Event "Titled Tuesday Blitz March 14 Late 2023"]
[White "Kramnik, Vladimir"]
[Black "Hajiyev, Kanan"]
[WhiteFideId "4101588"]
[BlackFideId "13404148"]
[WhiteElo "2712"]
[BlackElo "2103"]
[Result "1-0"]
[Round "02"]
[TimeControl "180+1"]
[Date "2023.03.14"]
[WhiteClock "0:00:26"]
[BlackClock "0:00:13"]

1. Nf3 {[%clk 0:03:00]}  d5 {[%clk 0:02:58]} 2. g3 {[%clk 0:03:00]}  Nf6 {[%clk 0:02:57]} 3. Bg2 {[%clk 0:03:00]}  g6 {[%clk 0:02:58]} 4. c4 {[%clk 0:02:58]}  c6 {[%clk 0:02:57]} 5. b3 {[%clk 0:02:57]}  Bg7 {[%clk 0:02:58]} 6. Bb2 {[%clk 0:02:57]}  O-O {[%clk 0:02:58]} 7. O-O {[%clk 0:02:58]}  Bg4 {[%clk 0:02:57]} 8. d3 {[%clk 0:02:58]}  Nbd7 {[%clk 0:02:55]} 9. Nbd2 {[%clk 0:02:57]}  Re8 {[%clk 0:02:54]} 10. h3 {[%clk 0:02:53]}  Bxf3 {[%clk 0:02:54]} 11. Nxf3 {[%clk 0:02:54]}  e5 {[%clk 0:02:55]} 12. e3 {[%clk 0:02:53]}  Qe7 {[%clk 0:02:55]} 13. cxd5 {[%clk 0:02:51]}  Nxd5 {[%clk 0:02:49]} 14. Qe2 {[%clk 0:02:45]}  Rad8 {[%clk 0:02:46]} 15. Rfd1 {[%clk 0:02:36]}  h6 {[%clk 0:02:39]} 16. a3 {[%clk 0:02:35]}  Kh7 {[%clk 0:02:39]} 17. b4 {[%clk 0:02:31]}  a6 {[%clk 0:02:37]} 18. Rac1 {[%clk 0:02:29]}  N7b6 {[%clk 0:02:28]} 19. Qc2 {[%clk 0:02:27]}  Nc8 {[%clk 0:02:14]} 20. Qb3 {[%clk 0:02:23]}  Na7 {[%clk 0:01:52]} 21. e4 {[%clk 0:02:20]}  Nc7 {[%clk 0:01:44]} 22. a4 {[%clk 0:02:16]}  Rd7 {[%clk 0:01:32]} 23. h4 {[%clk 0:02:11]}  Red8 {[%clk 0:01:29]} 24. Bh3 {[%clk 0:02:07]}  Rd6 {[%clk 0:01:26]} 25. Rc5 {[%clk 0:01:46]}  f6 {[%clk 0:01:16]} 26. h5 {[%clk 0:01:42]}  g5 {[%clk 0:01:09]} 27. d4 {[%clk 0:01:33]}  Ne6 {[%clk 0:00:55]} 28. Bxe6 {[%clk 0:01:26]}  Qxe6 {[%clk 0:00:55]} 29. Qxe6 {[%clk 0:01:24]}  Rxe6 {[%clk 0:00:56]} 30. Re1 {[%clk 0:01:07]}  Bf8 {[%clk 0:00:54]} 31. dxe5 {[%clk 0:01:06]}  Bxc5 {[%clk 0:00:52]} 32. bxc5 {[%clk 0:01:06]}  g4 {[%clk 0:00:50]} 33. Nh2 {[%clk 0:00:59]}  Rd2 {[%clk 0:00:42]} 34. Ba1 {[%clk 0:00:55]}  fxe5 {[%clk 0:00:37]} 35. Nxg4 {[%clk 0:00:55]}  Nc8 {[%clk 0:00:34]} 36. Bxe5 {[%clk 0:00:51]}  b6 {[%clk 0:00:29]} 37. cxb6 {[%clk 0:00:43]}  Nxb6 {[%clk 0:00:30]} 38. Nf6+ {[%clk 0:00:41]}  Kh8 {[%clk 0:00:17]} 39. Nd7+ {[%clk 0:00:41]}  Rxe5 {[%clk 0:00:17]} 40. Nxe5 {[%clk 0:00:41]}  Nxa4 {[%clk 0:00:17]} 41. Nxc6 {[%clk 0:00:36]}  Nc3 {[%clk 0:00:17]} 42. e5 {[%clk 0:00:36]}  Re2 {[%clk 0:00:15]} 43. Rxe2 {[%clk 0:00:34]}  Nxe2+ {[%clk 0:00:16]} 44. Kf1 {[%clk 0:00:33]}  Nc3 {[%clk 0:00:16]} 45. f4 {[%clk 0:00:32]}  Kg7 {[%clk 0:00:16]} 46. Kg2 {[%clk 0:00:30]}  Nd5 {[%clk 0:00:15]} 47. Kf3 {[%clk 0:00:29]}  Kf7 {[%clk 0:00:14]} 48. Ke4 {[%clk 0:00:29]}  Nc3+ {[%clk 0:00:14]} 49. Kf5 {[%clk 0:00:28]}  Ne2 {[%clk 0:00:15]} 50. e6+ {[%clk 0:00:28]}  Ke8 {[%clk 0:00:14]} 51. g4 {[%clk 0:00:28]}  a5 {[%clk 0:00:14]} 52. Nxa5 {[%clk 0:00:26]}  Nd4+ {[%clk 0:00:14]} 53. Kf6 {[%clk 0:00:26]}  Nf3 {[%clk 0:00:12]} 54. g5 {[%clk 0:00:26]}  hxg5 {[%clk 0:00:13]} 55. h6 {[%clk 0:00:26]} 1-0


[Site "https://www.chess.com"]

[Event "Titled Tuesday Blitz March 14 Late 2023"]
[White "Kravtsiv, Martyn"]
[Black "Priasmoro, Novendra"]
[WhiteFideId "14113147"]
[BlackFideId "7105029"]
[WhiteElo "2695"]
[BlackElo "2412"]
[Result "1-0"]
[Round "02"]
[TimeControl "180+1"]
[Date "2023.03.14"]
[WhiteClock "0:01:45"]
[BlackClock "0:01:10"]

1. e4 {[%clk 0:03:00]}  e5 {[%clk 0:02:59]} 2. Nf3 {[%clk 0:03:00]}  Nc6 {[%clk 0:03:00]} 3. Nc3 {[%clk 0:03:01]}  Nf6 {[%clk 0:03:00]} 4. a4 {[%clk 0:03:01]}  Bc5 {[%clk 0:03:00]} 5. Nxe5 {[%clk 0:03:00]}  Bxf2+ {[%clk 0:02:55]} 6. Kxf2 {[%clk 0:02:59]}  Nxe5 {[%clk 0:02:56]} 7. d4 {[%clk 0:02:59]}  Nfg4+ {[%clk 0:02:29]} 8. Ke1 {[%clk 0:02:43]}  Qh4+ {[%clk 0:02:28]} 9. g3 {[%clk 0:02:42]}  Qf6 {[%clk 0:02:29]} 10. Bf4 {[%clk 0:02:41]}  d6 {[%clk 0:01:25]} 11. Be2 {[%clk 0:02:08]}  h5 {[%clk 0:01:19]} 12. h3 {[%clk 0:01:48]}  Ng6 {[%clk 0:01:10]} 13. Nd5 {[%clk 0:01:47]}  Qd8 {[%clk 0:01:10]} 14. hxg4 {[%clk 0:01:45]} 1-0


[Site "https://www.chess.com"]